lending/lending_fUSD_20241124
["ID","MTS","AMOUNT","RATE_DAILY","PERIOD"]
[343205545,1732446639851,-152.19,0.0004759,2]
[343205546,1732446639861,-192.24,0.0004759,120]
[343205547,1732446639871,-182.28080906,0.00047599,120]
[343205548,1732446639881,-1002.70262198,0.00047599,8]
[343205549,1732446639890,-188.82333605,0.00047599,28]
[343205550,1732446639899,-150.34104622,0.00047599,2]
[343205551,1732446639909,-419.0,0.000476,7]
[343205552,1732446639918,-173450.70485191,0.000476,18]
[343205553,1732446639931,-680038.01760618,0.000476,18]
[343205554,1732446639940,-31892.63376472,0.000476,10]
[343205555,1732446640192,-1250.0,0.000476,10]
[343205584,1732446645749,-500.0,0.00047599,31]
[343205588,1732446645760,-500.0,0.00047599,31]
[343205591,1732446645772,-500.0,0.00047599,31]
[343205594,1732446645783,-172.22748586,0.00047599,31]
[343205598,1732446645808,-28373.24575836,0.000476,10]
[343205601,1732446645819,-400.0,0.000476,17]
[343205603,1732446645828,-732.11743754,0.00047699,15]
[343205604,1732446645840,-8438.37851654,0.000477,2]
[343205605,1732446645852,-14417.03798346,0.000477,2]
[343205606,1732446645863,-8178.26581774,0.000477,10]
[343205607,1732446645874,-900.0,0.000477,17]
[343205608,1732446645884,-500.0,0.00047773,2]
[343205609,1732446645894,-160.80450934,0.00047773,10]
[343205610,1732446645903,-87637.99757137,0.00047798,10]
[343205611,1732446645917,-7980.19111969,0.00047798,10]
[343205612,1732446645929,-3303.08848461,0.00047798,10]
[343205613,1732446645941,-1078.72282433,0.00047798,10]
[343205614,1732446645951,-500.0,0.00047799,7]
[343205615,1732446645960,-1400.0,0.000478,17]
[343205616,1732446645968,-133.38439169,0.0004781,2]
[343205617,1732446645981,-16.95665453,0.0004781,2]
[343205618,1732446645990,-339.06148842,0.00047872,15]
[343205619,1732446646002,-385.7625635,0.00047872,15]
[343205620,1732446646014,-415.37682025,0.00047872,15]
[343205621,1732446646026,-1850.59882016,0.00047872,15]
[343205622,1732446646036,-973.51040682,0.0004788,2]
[343205623,1732446646053,-2068.99994,0.0004788,2]
[343205624,1732446646066,-3030.56159575,0.0004788,2]
[343205625,1732446646083,-475.73162802,0.0004788,2]
[343205626,1732446646094,-4374.26837138,0.000479,2]
[343205627,1732446646106,-41950.10719367,0.000479,2]
[343205628,1732446646220,-303.15770766,0.000479,2]
[343205629,1732446646232,-15003.27173015,0.000479,2]
[343205630,1732446646245,-567.93577861,0.000479,2]
[343205631,1732446646258,-3350.0,0.000479,2]
[343205657,1732447049602,28722.0,0.00032,120]
[343205688,1732447831796,-155.0,0.000375,2]
[343205689,1732447831806,-158.98,0.00041096,2]
[343205690,1732447831816,-155.76,0.00041096,2]
[343205691,1732447831825,-58.69434928,0.000411,2]
[343205692,1732447831918,-11319.56301248,0.000411,2]
[343205693,1732447831928,-217.07587508,0.000429,2]
[343205694,1732447831938,-174.95883863,0.000429,120]
[343205695,1732447831951,-39394.02570929,0.00043,120]
[343205696,1732447832041,-266.51053339,0.00043,120]
[343205697,1732447832058,-3905.3952,0.00043,120]
[343205790,1732447837888,-45520.65888295,0.00043,120]
[343205791,1732447837899,-500.0,0.00043,2]
[343205792,1732447837910,-150.0,0.00043,120]
[343205793,1732447837921,-217.07587506,0.000434,2]
[343205794,1732447837931,-819.79,0.00043405,2]
[343205795,1732447837945,-1000.0,0.00043548,2]
[343205796,1732447837959,-217.07587506,0.000439,2]
[343205797,1732447837970,-200.0,0.00044,120]
[343205798,1732447837981,-315.42139373,0.00044,2]
[343205799,1732447837992,-1000.0,0.0004455,2]
[343205800,1732447838003,-150.0,0.00044959,2]
[343205801,1732447838014,-2001.18,0.00045318,2]
[343205802,1732447838025,-36477.0,0.00045532,30]
[343205803,1732447838036,-1075.74,0.00045608,2]
[343205804,1732447838049,-250.0,0.00045627,120]
[343205805,1732447838060,-208.71,0.00045665,2]
[343205806,1732447838071,-819.79,0.00045669,2]
[343205807,1732447838082,-156.02,0.00045814,120]
[343205808,1732447838093,-150.0,0.00045815,2]
[343205809,1732447838104,-324.63,0.00045826,2]
[343205810,1732447838115,-150.39,0.00045831,2]
[343205811,1732447838126,-250.0,0.00045865,120]
[343205812,1732447838136,-1639.43,0.00045942,2]
[343205813,1732447838147,-1456.98,0.00045986,120]
[343205814,1732447838158,-200.0,0.00046,120]
[343205815,1732447838169,-513.5,0.00046022,120]
[343205816,1732447838181,-1000.0,0.00046045,2]
[343205817,1732447838192,-500.0,0.0004605,2]
[343205818,1732447838205,-23900.0,0.00046053,2]
[343205819,1732447838215,-643.55,0.00046055,2]
[343205820,1732447838226,-1187.17,0.00046066,2]
[343205821,1732447838238,-250.0,0.00046087,2]
[343205822,1732447838248,-2500.0,0.00046299,2]
[343205823,1732447838259,-165.72,0.00046419,2]
[343205824,1732447838270,-300.0,0.000467,17]
[343205825,1732447838281,-150.36,0.00046701,2]
[343205826,1732447838293,-159.05,0.00046719,2]
[343205827,1732447838304,-159.05,0.00046745,2]
[343205828,1732447838315,-159.05,0.00046771,2]
[343205829,1732447838326,-222.86,0.00046781,2]
[343205830,1732447838337,-159.05,0.00046797,2]
[343205831,1732447838348,-199.32,0.00046799,2]
[343205832,1732447838359,-600.0,0.000468,17]
[343205833,1732447838371,-159.05,0.00046823,2]
[343205834,1732447838382,-159.05,0.00046849,2]
[343205835,1732447838393,-1593.405,0.0004685,30]
[343205836,1732447838404,-159.05,0.00046875,2]
[343205837,1732447838415,-1000.0,0.000469,17]
[343205838,1732447838426,-159.05,0.00046901,2]
[343205839,1732447838437,-159.05,0.00046927,2]
[343205840,1732447838450,-159.05,0.00046953,2]
[343205841,1732447838462,-6064.56363017,0.000471,2]
[343205842,1732447838474,-1028.093,0.00047118,79]
[343205843,1732447838485,-214.53775257,0.00047129,24]
[343205844,1732447838495,-498.02182816,0.00047173,10]
[343205845,1732447838506,-185.80305399,0.00047199,31]
[343205846,1732447838518,-5428.10623889,0.00047199,2]
[343205847,1732447838529,-60474.81156092,0.00047199,11]
[343205848,1732447838542,-1445.42961239,0.00047199,11]
[343205849,1732447838594,-194893.32481485,0.00047199,11]
[343205851,1732447838608,-6014.22100271,0.00047199,11]
[343205852,1732447838624,-3964.98054472,0.00047199,11]
[343205856,1732447840333,-234684.72195743,0.00047199,11]
[343205857,1732447840344,-227747.92883829,0.00047199,11]
[343205862,1732447843733,-6880.94845879,0.00047199,11]
[343205863,1732447843752,-687.57786351,0.00047199,11]
[343205864,1732447843764,-769.78823586,0.00047199,11]
[343205865,1732447843775,-3317.78948952,0.00047199,11]
[343205866,1732447843791,-51432.38278315,0.00047199,11]
[343205867,1732447843802,-30757.93976154,0.00047199,20]
[343205868,1732447843813,-125749.80620298,0.000472,30]
[343205869,1732447843825,-134604.18786273,0.000472,30]
[343205870,1732447843837,-3669.55389898,0.000472,30]
[343205871,1732447843849,-12293.14660269,0.000472,30]
[343205872,1732447843863,-11298.22678566,0.000472,30]
[343205873,1732447843878,-2462.08569611,0.000472,30]
[343205874,1732447843890,-3493.20067985,0.000472,30]
[343205875,1732447843902,-5864.040957,0.000472,30]
[343205876,1732447843914,-28197.87182151,0.000472,30]
[343205877,1732447843954,-11050.03784146,0.000472,30]
[343205878,1732447843966,-9178.88970807,0.000472,30]
[343205879,1732447843977,-1729.56246599,0.000472,30]
[343205880,1732447843988,-48858.91812318,0.000472,30]
[343205881,1732447843999,-4882.72132733,0.000472,30]
[343205893,1732447845952,-1997.9960002,0.000472,30]
[343205894,1732447846073,-782386.65391921,0.000472,30]
[343205895,1732447846197,-4026.07909849,0.000472,30]
[343205896,1732447846323,-373.26408349,0.000429,2]
[343205897,1732447846332,-876.03591648,0.000472,30]
[343205898,1732447846344,-1675.69999999,0.000472,30]
[343205899,1732447846356,-4989.34426268,0.000472,30]
[343205900,1732447846541,-2858.58070007,0.000472,30]
[343205901,1732447846553,-571.90751972,0.000472,30]
[343205903,1732447846564,-4382.82290847,0.000472,30]
[343205904,1732447846576,-748.91008359,0.000472,30]
[343205905,1732447846587,-403.81,0.000472,30]
[343205907,1732448395877,7150.04,0.000351,2]
[343205910,1732448548228,9468.48689651,0.000375,3]
[343205911,1732448705024,150.0,0.00034548,10]
[343205912,1732448841872,250.0,0.00031,2]
[343205913,1732448842944,300.0,0.00033,2]
[343205914,1732448844014,350.0,0.00035,2]
[343205943,1732449038469,-400.0,0.00037,2]
[343205944,1732449038479,-160.1,0.00041096,2]
[343205945,1732449038489,-158.77,0.00041096,2]
[343205946,1732449038499,-174.95883863,0.00042792,120]
[343205947,1732449038509,-152.0,0.00043042,3]
[343205948,1732449038518,-831.1,0.00044132,2]
[343205949,1732449038528,-150.0,0.00044186,30]
[343205950,1732449038537,-150.0,0.0004436,2]
[343205951,1732449038547,-2832.58787241,0.00045,12]
[343205952,1732449038556,-150.39,0.00045703,2]
[343205953,1732449038566,-512.39,0.00045873,120]
[343205954,1732449038575,-500.0,0.00045901,2]
[343205955,1732449038584,-10627.70339703,0.00045907,2]
[343205956,1732449038597,-4075.77899679,0.00045907,2]
[343205957,1732449038609,-1313.57357347,0.00045907,2]
[343205980,1732449040100,-6456.50779749,0.00045907,2]
[343205981,1732449040112,-1426.43623522,0.00045907,2]
[343205982,1732449040121,-731.89,0.00045911,2]
[343205983,1732449040131,-1000.0,0.00045931,2]
[343205984,1732449040141,-1436.62,0.0004594,2]
[343205985,1732449040150,-250.0,0.0004594,2]
[343205986,1732449040160,-250.0,0.00046029,120]
[343205987,1732449040169,-165.72,0.00046037,2]
[343205988,1732449040179,-224.84,0.00046065,2]
[343205989,1732449040188,-202.59,0.0004609,2]
[343205990,1732449040198,-282.585,0.0004612,120]
[343205991,1732449040207,-250.0,0.00046193,120]
[343205992,1732449040217,-327.53,0.00046201,2]
[343205993,1732449040227,-1122.271,0.00046243,76]
[343205994,1732449040236,-170.479,0.00046243,76]
[343205995,1732449040246,-155.54,0.0004629,120]
[343205996,1732449040255,-1000.0,0.00046317,7]
[343205997,1732449040264,-763.49536478,0.00046317,2]
[343205998,1732449040280,-1001.60171811,0.00046317,2]
[343205999,1732449040289,-1100.0,0.00046317,4]
[343206000,1732449040298,-798.60467353,0.00046317,4]
[343206005,1732449043068,-158.39532647,0.00046317,4]
[343206006,1732449043077,-831.1,0.00046396,2]
[343206007,1732449043087,-213.05,0.0004646,120]
[343206008,1732449043099,-179.76,0.00046545,2]
[343206009,1732449043109,-179.76,0.00046661,2]
[343206010,1732449043118,-187.09,0.00046712,30]
[343206011,1732449043127,-867.5,0.00046712,30]
[343206012,1732449043136,-122.32880516,0.00046712,30]
[343206013,1732449043151,-177.67119484,0.00046712,30]
[343206014,1732449043161,-94.36605631,0.0004673,2]
[343206015,1732449043173,-5013.22483103,0.0004673,2]
[343206016,1732449043183,-179.76,0.00046778,2]
[343206017,1732449043191,-4527.91516897,0.000469,7]
[343206018,1732449043302,-2364.75784129,0.000469,7]
[343206019,1732449043315,-1228.52250457,0.000469,7]
[343206020,1732449043473,-1174.95000044,0.000469,7]
[343206053,1732449046089,-483.97448473,0.000469,7]
[343206055,1732449046098,-150.0,0.00046964,7]
[343206056,1732449046107,-104.39713512,0.00047,120]
[343206057,1732449046118,-253.49477206,0.00047,120]
[343206058,1732449046129,-1570.95000001,0.00047,120]
[343206059,1732449046140,-2241.6500005,0.00047,120]
[343206060,1732449046151,-1342.8012985,0.00047,120]
[343206061,1732449046162,-2192.35567487,0.00047,120]
[343206062,1732449046171,-150.0,0.00047178,30]
[343206063,1732449046180,-77.43262513,0.0004719,7]
[343206064,1732449046199,-72.56737487,0.0004719,7]
[343206065,1732449046208,-792.37207,0.00047199,36]
[343206066,1732449046217,-1375.70849506,0.000472,120]
[343206067,1732449046357,-150.0,0.000469,7]
[343206068,1732449046367,-793.14377504,0.000472,120]
[343206069,1732449046376,-283.11,0.000472,20]
[343206070,1732449046385,-150.0,0.00047208,7]
[343206071,1732449046394,-152.0,0.00047245,4]
[343206072,1732449046403,-150.0,0.00047346,7]
[343206073,1732449046412,-223.0,0.000474,120]
[343206074,1732449046421,-6818.9666,0.000474,2]
[343206075,1732449046430,-1812.85347498,0.000474,15]
[343206076,1732449046439,-764.33,0.00047425,30]
[343206077,1732449046448,-167.28,0.00047428,2]
[343206078,1732449046460,-279.8225,0.00047429,2]
[343206079,1732449046469,-1339.56743236,0.0004744,15]
[343206080,1732449046481,-2073.8996338,0.0004744,15]
[343206081,1732449046490,-150.0,0.00047443,7]
[343206082,1732449046499,-150.0,0.00047468,7]
[343206083,1732449046509,-543.0,0.00047474,120]
[343206084,1732449046519,-5212.5171,0.00047479,20]
[343206085,1732449046528,-1807.20561623,0.000475,120]
[343206086,1732449046540,-59956.76699432,0.000475,120]
[343206087,1732449046549,-2500.0,0.000475,2]
[343206088,1732449046558,-3195.88491407,0.000475,120]
[343206090,1732449046567,-203.0,0.000475,30]
[343206091,1732449046577,-207.0,0.000475,30]
[343206092,1732449046586,-222.86,0.00047525,2]
[343206093,1732449046595,-831.78,0.0004753,30]
[343206094,1732449046604,-150.0,0.00047534,30]
[343206095,1732449046613,-25260.77433242,0.0004754,2]
[343206096,1732449046624,-29074.79506758,0.0004754,2]
[343206097,1732449046634,-974.6849,0.0004754,2]
[343206098,1732449046644,-168.22699762,0.0004754,30]
[343206099,1732449046653,-1672.38751705,0.0004754,30]
[343206100,1732449046663,-150.0,0.00047578,7]
[343206101,1732449046672,-150.0,0.00047596,7]
[343206102,1732449046681,-11018.8511,0.000476,2]
[343206103,1732449046690,-4264.46091115,0.000476,30]
[343206104,1732449046701,-556.30498588,0.000476,30]
[343206105,1732449046711,-1233.446995,0.000476,30]
[343206130,1732450232141,-158.98,0.00041096,2]
[343206131,1732450232151,-722.10675534,0.000429,2]
[343206132,1732450232162,-1267.64632329,0.000429,2]
[343206133,1732450232197,-2386.355955,0.000429,2]
[343206134,1732450232249,-197.37411677,0.000429,2]
[343206135,1732450232259,-899.0,0.00043,2]
[343206136,1732450232269,-4573.48315038,0.00043323,2]
[343206137,1732450232279,-3120.9696331,0.00043745,2]
[343206138,1732450232290,-1452.51351728,0.00043745,2]
[343206139,1732450232302,-861.38,0.00043845,2]
[343206140,1732450232312,-217.07587506,0.00044443,2]
[343206141,1732450232321,-1103.435,0.00044543,71]
[343206142,1732450232331,-250.0,0.00045682,120]
[343206143,1732450232340,-500.0,0.00045687,2]
[343206144,1732450232350,-2001.18,0.00045716,2]
[343206145,1732450232359,-250.0,0.00045722,2]
[343206146,1732450232369,-250.0,0.00045723,120]
[343206147,1732450232378,-687.72,0.00045735,2]
[343206148,1732450232388,-219.73,0.00045736,2]
[343206149,1732450232398,-1075.74,0.00045741,2]
[343206150,1732450232407,-1000.0,0.00045753,2]
[343206151,1732450232417,-203.81,0.00045755,2]
[343206152,1732450232428,-1639.43,0.00045755,2]
[343206153,1732450232438,-133.52090247,0.00045763,2]
[343206154,1732450232454,-32.19909753,0.00045763,2]
[343206155,1732450232463,-324.63,0.00045764,2]
[343206156,1732450232473,-1456.98,0.00045775,120]
[343206157,1732450232482,-513.5,0.00045775,120]
[343206158,1732450232492,-150.0,0.00045787,2]
[343206159,1732450232501,-155.57,0.00045934,120]
[343206160,1732450232511,-861.38,0.00046109,2]
[343206161,1732450232520,-150.36,0.00046149,2]
[343206162,1732450232530,-217.07587506,0.00046189,2]
[343206163,1732450232539,-478.38,0.00046213,2]
[343206164,1732450232548,-478.38,0.00046225,2]
[343206165,1732450232559,-1187.17,0.00046235,2]
[343206166,1732450232568,-478.38,0.00046237,2]
[343206167,1732450232578,-478.38,0.00046249,2]
[343206168,1732450232588,-478.38,0.00046262,2]
[343206169,1732450232598,-478.38,0.00046274,2]
[343206170,1732450232607,-478.38,0.00046286,2]
[343206171,1732450232617,-478.38,0.00046298,2]
[343206172,1732450232627,-478.38,0.0004631,2]
[343206173,1732450232637,-478.38,0.00046322,2]
[343206174,1732450232648,-478.38,0.00046335,2]
[343206175,1732450232657,-478.38,0.00046347,2]
[343206176,1732450232667,-478.38,0.00046359,2]
[343206177,1732450232677,-478.38,0.00046371,2]
[343206178,1732450232690,-478.38,0.00046383,2]
[343206179,1732450232700,-23900.0,0.0004639,2]
[343206180,1732450232710,-478.38,0.00046395,2]
[343206181,1732450232720,-478.38,0.00046408,2]
[343206182,1732450232731,-478.38,0.0004642,2]
[343206183,1732450232742,-478.38,0.00046432,2]
[343206184,1732450232752,-478.38,0.00046444,2]
[343206185,1732450232763,-150.0,0.00046653,7]
[343206186,1732450232772,-165.73,0.00046671,2]
[343206187,1732450232782,-150.0,0.00046695,7]
[343206188,1732450232791,-483.98,0.00046762,7]
[343206189,1732450232801,-150.0,0.00046869,7]
[343206190,1732450232811,-14537.26179591,0.00047,120]
[343206191,1732450232982,-150.0,0.00047052,7]
[343206192,1732450232993,-222.87,0.00047115,2]
[343206193,1732450233003,-150.0,0.00047151,30]
[343206194,1732450233012,-150.0,0.00047151,30]
[343206195,1732450233021,-150.0,0.00047151,7]
[343206196,1732450233031,-150.0,0.00047191,7]
[343206197,1732450233041,-431.37,0.00047205,30]
[343206198,1732450233052,-1472.0,0.000473,7]
[343206199,1732450233062,-150.0,0.00047343,7]
[343206200,1732450233072,-150.0,0.00047364,7]
[343206201,1732450233082,-219.73,0.00047428,2]
[343206202,1732450233092,-1704.7798712,0.0004744,15]
[343206203,1732450233102,-1250.0,0.00047467,2]
[343206204,1732450233112,-150.0,0.00047471,7]
[343206205,1732450233122,-150.0,0.00047487,7]
[343206206,1732450233131,-150.0,0.00047502,7]
[343206207,1732450233141,-737.39109,0.00047514,60]
[343206208,1732450233150,-162.32478301,0.00047516,28]
[343206209,1732450233160,-214.53775257,0.00047516,25]
[343206210,1732450233170,-1000.0,0.00047516,2]
[343206211,1732450233180,-11343.55973872,0.00047517,2]
[343206212,1732450233192,-22.02886128,0.00047517,2]
[343206213,1732450233202,-1101.38665672,0.00047517,2]
[343206214,1732450233215,-847.86104328,0.00047517,2]
[343206215,1732450233224,-1733.88941349,0.00047539,14]
[343206216,1732450233236,-4978.92299683,0.00047539,14]
[343206217,1732450233255,-251.58332407,0.00047539,14]
[343206218,1732450233266,-9634.24753542,0.00047539,14]
[343206219,1732450233278,-445.82500683,0.00047539,14]
[343206220,1732450233290,-909.33837036,0.00047539,14]
[343206291,1732450238340,-500.0,0.00045716,2]
[343206292,1732450238350,-150.39,0.0004648,2]
[343206293,1732450238360,-2672.12302097,0.00047355,120]
[343206294,1732450238373,-537.13002854,0.00047355,120]
[343206295,1732450238393,-1422.71952053,0.00047355,120]
[343206296,1732450238500,-5382.296625,0.00047355,120]
[343206297,1732450238511,-5219.51402086,0.00047355,120]
[343206298,1732450238521,-2180.37419914,0.00047539,14]
[343206299,1732450238558,-12535.59000938,0.00047539,14]
[343206300,1732450238571,-797.119,0.0004754,2]
[343206301,1732450238580,-1250.0,0.0004754,2]
[343206302,1732450238589,-1584.881,0.0004754,2]
[343206303,1732450238599,-6781.1543,0.0004754,2]
[343206304,1732450238609,-1071.1404,0.0004754,2]
[343206305,1732450238618,-150.0,0.00047551,7]
[343206306,1732450238627,-18786.99956193,0.00047567,120]
[343206307,1732450238659,-2385.47819203,0.00047567,120]
[343206308,1732450238670,-1592.42457867,0.00047567,120]
[343206309,1732450238684,-323.79921957,0.00047567,120]
[343206310,1732450238696,-2125.10337368,0.00047567,120]
[343206316,1732450240140,-500.0,0.00045735,2]
[343206317,1732450240154,-8607.35979019,0.00047567,120]
[343206318,1732450240167,-150.0,0.00047585,7]
[343206319,1732450240180,-1377.8520422,0.000476,30]
[343206320,1732450240193,-4820.6873,0.000476,2]
[343206321,1732450240205,-200.0,0.000476,7]
[343206322,1732450240216,-660.31006,0.000476,38]
[343206323,1732450240228,-500.0,0.00047605,31]
[343206324,1732450240240,-500.0,0.00047605,31]
[343206325,1732450240252,-500.0,0.00047605,31]
[343206326,1732450240264,-606.57766213,0.00047605,31]
[343206327,1732450240276,-157.64,0.00047606,2]
[343206328,1732450240288,-5252.8,0.00047606,2]
[343206329,1732450240301,-5252.8,0.00047606,2]
[343206330,1732450240314,-5252.8,0.00047606,2]
[343206331,1732450240327,-5252.8,0.00047606,2]
[343206332,1732450240339,-5252.8,0.00047606,2]
[343206333,1732450240352,-153429.76177721,0.00047616,17]
[343206334,1732450240372,-3187.90743669,0.00047616,17]
[343206343,1732450243415,-259.20089207,0.00047616,17]
[343206344,1732450243430,-725.63769788,0.00047616,17]
[343206345,1732450243468,-572.36773461,0.00047616,17]
[343206347,1732450243577,-312.0,0.00047616,17]
[343206349,1732450243689,-15020.01000362,0.00047616,17]
[343206350,1732450243794,-5101.48123242,0.00047616,17]
[343206352,1732450243855,-9935.6792172,0.00047616,17]
[343206370,1732450246134,-202.11,0.00046837,2]
[343206372,1732450246146,-202.11,0.00047071,2]
[343206375,1732450246157,-117.82232175,0.00047616,17]
[343206377,1732450246170,-2749.95145505,0.00047616,17]
[343206378,1732450246183,-1407.26882386,0.00047616,17]
[343206379,1732450246196,-6618.94546953,0.00047616,17]
[343206380,1732450246343,-10047.7316,0.00047616,17]
[343206381,1732450246503,-2779.87019278,0.00047616,17]
[343206382,1732450246517,-2025.50002,0.00047616,17]
[343206383,1732450246560,-502.69430005,0.00047616,17]
[343206406,1732450647419,250.0,0.00031,2]
[343206442,1732451329765,2558.26747514,0.000375,3]
[343206467,1732451435806,-307.0,0.0004,2]
[343206469,1732451435815,-19.66503558,0.0004,2]
[343206472,1732451435861,-285.33496442,0.0004,2]
[343206473,1732451435870,-305.0,0.0004,2]
[343206474,1732451435879,-305.0,0.0004,2]
[343206475,1732451435894,-155.76,0.00041096,2]
[343206476,1732451435903,-159.35,0.00041096,2]
[343206477,1732451435913,-542.571321,0.00042784,2]
[343206478,1732451435923,-177.44289374,0.00042899,2]
[343206479,1732451435933,-177.44289373,0.000429,2]
[343206480,1732451435942,-550.0,0.00042999,5]
[343206481,1732451435954,-9962.97792711,0.00043,120]
[343206482,1732451436138,-35557.68095584,0.00043,120]
[343206483,1732451436148,-500.0,0.000438,7]
[343206484,1732451436158,-315.42139373,0.00044,2]
[343206485,1732451436169,-152.0,0.00044093,3]
[343206486,1732451436179,-775.24,0.00044414,2]
[343206487,1732451436190,-160.10289153,0.000449,4]
[343206488,1732451436201,-2568.37427955,0.00045,2]
[343206489,1732451436211,-548.92,0.00045477,2]
[343206490,1732451436220,-163.55,0.00045477,2]
[343206491,1732451436229,-250.0,0.00045624,120]
[343206492,1732451436239,-157.59,0.00045801,120]
[343206493,1732451436248,-36477.0,0.00045916,30]
[343206495,1732451436258,-150.39,0.00045986,2]
[343206497,1732451436267,-6020.24802409,0.00046,60]
[343206499,1732451436278,-1222.0,0.00046,40]
[343206502,1732451436464,-307.43,0.0004611,120]
[343206503,1732451436475,-23900.0,0.00046155,2]
[343206504,1732451436486,-150.0,0.00046198,2]
[343206505,1732451436496,-163.04,0.00046202,2]
[343206506,1732451436506,-150.0,0.00046228,2]
[343206507,1732451436516,-500.0,0.00046228,2]
[343206508,1732451436526,-1000.0,0.00046332,2]
[343206509,1732451436535,-563.39861188,0.00046332,60]
[343206510,1732451436545,-250.0,0.00046425,120]
[343206511,1732451436555,-1000.0,0.000465,7]
[343206512,1732451436564,-450.5771336,0.00046653,4]
[343206513,1732451436574,-775.24,0.00046678,2]
[343206514,1732451436584,-183.08,0.00046727,2]
[343206515,1732451436593,-272.91,0.00046794,120]
[343206516,1732451436603,-1048.78,0.00046876,78]
[343206517,1732451436612,-433.75,0.00046959,30]
[343206518,1732451436622,-372.87,0.00046959,30]
[343206519,1732451436632,-6079.30664799,0.00047,120]
[343206520,1732451436641,-1222.0,0.00047,40]
[343206521,1732451436651,-150.0,0.00047082,7]
[343206522,1732451436660,-163.55,0.0004716,2]
[343206523,1732451436670,-6949.69056369,0.00047298,10]
[343206524,1732451436680,-234.06418468,0.00047299,31]
[343206525,1732451436691,-62783.79531342,0.000473,2]
[343206538,1732451438593,-500.0,0.000429,2]
[343206539,1732451438603,-22831.44243898,0.000473,2]
[343206540,1732451438613,-1002.948814,0.000473,14]
[343206541,1732451438623,-1811.87199276,0.0004734,15]
[343206542,1732451438633,-309.6534,0.0004744,2]
[343206543,1732451438643,-6144.144,0.0004744,2]
[343206544,1732451438653,-217.3772,0.0004744,2]
[343206545,1732451438663,-263.9859,0.0004744,2]
[343206546,1732451438673,-3538.664,0.0004744,2]
[343206547,1732451438683,-2500.0,0.0004744,2]
[343206548,1732451438693,-251.19237065,0.000475,2]
[343206549,1732451438704,-58652.7177252,0.000475,120]
[343206550,1732451438714,-8833.7279,0.0004754,2]
[343206551,1732451438724,-1000.0,0.0004754,2]
[343206552,1732451438734,-321.23516802,0.00047566,2]
[343206553,1732451438743,-29046.0059,0.00047573,2]
[343206554,1732451438753,-18801.8821,0.00047573,2]
[343206555,1732451438762,-510.4782,0.00047573,2]
[343206556,1732451438772,-4579.1335,0.00047573,2]
[343206557,1732451438781,-11926.6,0.00047599,2]
[343206558,1732451438791,-336.63136437,0.000476,120]
[343206559,1732451438801,-703.4440071,0.00047605,2]
[343206560,1732451438811,-550.25838,0.00047606,38]
[343206561,1732451438822,-200.0,0.00047616,7]
[343206562,1732451438831,-268.396,0.0004763,120]
[343206563,1732451438841,-62131.34552964,0.0004764,120]
[343206564,1732451438851,-3832.1832999,0.00047666,2]
[343206565,1732451438860,-169.75698,0.00047697,30]
[343206566,1732451438869,-150.0,0.00047699,30]
[343206568,1732451438879,-448.46106266,0.00047699,2]
[343206570,1732451438888,-147142.31425522,0.000477,17]
[343206573,1732451438909,-3146.78821634,0.000477,17]
[343206590,1732451440312,-500.0,0.00044,2]
[343206591,1732451440323,-9227.718,0.000477,17]
[343206592,1732451440365,-50435.55449563,0.000477,17]
[343206593,1732451440377,-3160.58586236,0.000477,17]
[343206594,1732451440389,-835.04949691,0.000477,17]
[343206595,1732451440640,-3806.0,0.000477,17]